[Event "Live Chess"]
[Site "Chess.com"]
[Date "2024.06.01"]
[Round "-"]
[White "mrsmarple1968"]
[Black "JohanKjeldahl"]
[Result "0-1"]
[WhiteElo "1780"]
[BlackElo "1835"]
[TimeControl "300"]
[EndTime "12:03:41 PDT"]
[Termination "JohanKjeldahl won on time"]

1. e4 {[%clk 0:04:56.4]} 1... c5 {[%clk 0:04:57.7]} 2. Nc3 {[%clk 0:04:54]} 2...
e6 {[%clk 0:04:56.5]} 3. g3 {[%clk 0:04:48.1]} 3... Nc6 {[%clk 0:04:54.3]} 4.
Bg2 {[%clk 0:04:46.6]} 4... a6 {[%clk 0:04:50.5]} 5. d3 {[%clk 0:04:44.7]} 5...
g6 {[%clk 0:04:47.8]} 6. Be3 {[%clk 0:04:42.4]} 6... d6 {[%clk 0:04:43.4]} 7.
Qd2 {[%clk 0:04:40.3]} 7... Bg7 {[%clk 0:04:41.9]} 8. O-O-O {[%clk 0:04:37.7]}
8... Nd4 {[%clk 0:04:38.2]} 9. Rf1 {[%clk 0:04:29.9]} 9... Ne7 {[%clk
0:04:32.6]} 10. f4 {[%clk 0:04:26.8]} 10... Nec6 {[%clk 0:04:31.3]} 11. Nf3
{[%clk 0:04:14.9]} 11... Bd7 {[%clk 0:04:28.4]} 12. g4 {[%clk 0:04:06]} 12... h5
{[%clk 0:04:15.6]} 13. h3 {[%clk 0:04:02.8]} 13... Qa5 {[%clk 0:04:08.9]} 14.
Kb1 {[%clk 0:03:27.6]} 14... Nb4 {[%clk 0:04:05.1]} 15. a3 {[%clk 0:03:11.7]}
15... Nbxc2 {[%clk 0:04:01.7]} 16. Bxd4 {[%clk 0:02:46.8]} 16... Nxd4 {[%clk
0:03:58.1]} 17. e5 {[%clk 0:02:28.7]} 17... dxe5 {[%clk 0:03:52.8]} 18. Nxe5
{[%clk 0:02:19.5]} 18... Bxe5 {[%clk 0:03:39.7]} 19. fxe5 {[%clk 0:02:16.8]}
19... Bc6 {[%clk 0:03:38.1]} 20. Qf2 {[%clk 0:02:00.6]} 20... Rf8 {[%clk
0:03:22.8]} 21. Be4 {[%clk 0:01:24.6]} 21... Rd8 {[%clk 0:03:02.1]} 22. Rhg1
{[%clk 0:00:27.4]} 22... Kd7 {[%clk 0:02:36.2]} 23. Bxc6+ {[%clk 0:00:24]} 23...
bxc6 {[%clk 0:02:31.7]} 24. Ne4 {[%clk 0:00:20.2]} 24... Rb8 {[%clk 0:02:22.7]}
25. Rc1 {[%clk 0:00:17.4]} 25... Nb3 {[%clk 0:02:07.6]} 26. Rc3 {[%clk
0:00:11.3]} 26... c4 {[%clk 0:01:45.5]} 27. dxc4 {[%clk 0:00:08.9]} 27... Qxe5
{[%clk 0:01:38.5]} 28. Rd1+ {[%clk 0:00:06.5]} 28... Kc7 {[%clk 0:01:32.2]} 29.
Nf6 {[%clk 0:00:03.2]} 29... Rfd8 {[%clk 0:01:17.9]} 30. Rcd3 {[%clk 0:00:02]}
30... Rxd3 {[%clk 0:01:10]} 31. Rxd3 {[%clk 0:00:01]} 31... Nc5 {[%clk
0:01:04.3]} 0-1

[Event "Live Chess"]
[Site "Chess.com"]
[Date "2024.06.01"]
[Round "-"]
[White "Mangoalo"]
[Black "WorcesterYork"]
[Result "0-1"]
[WhiteElo "1035"]
[BlackElo "2547"]
[TimeControl "300"]
[EndTime "12:03:48 PDT"]
[Termination "WorcesterYork won by checkmate"]

1. e4 {[%clk 0:04:58.6]} 1... c5 {[%clk 0:04:59.3]} 2. Nf3 {[%clk 0:04:57.9]}
2... Nc6 {[%clk 0:04:57.9]} 3. d4 {[%clk 0:04:57.4]} 3... d6 {[%clk 0:04:49]} 4.
d5 {[%clk 0:04:55.3]} 4... Nb8 {[%clk 0:04:46.6]} 5. Nc3 {[%clk 0:04:53.9]} 5...
a6 {[%clk 0:04:45.9]} 6. a4 {[%clk 0:04:52.8]} 6... Nd7 {[%clk 0:04:45]} 7. Bg5
{[%clk 0:04:50.4]} 7... g6 {[%clk 0:04:44.9]} 8. h3 {[%clk 0:04:47.2]} 8... h6
{[%clk 0:04:44.8]} 9. Bf4 {[%clk 0:04:46]} 9... Bg7 {[%clk 0:04:42]} 10. Qd3
{[%clk 0:04:40.6]} 10... Rb8 {[%clk 0:04:39.7]} 11. Be2 {[%clk 0:04:33.9]} 11...
Ngf6 {[%clk 0:04:35.7]} 12. O-O {[%clk 0:04:32.5]} 12... O-O {[%clk 0:04:31.1]}
13. Rad1 {[%clk 0:04:22.4]} 13... Ne8 {[%clk 0:04:29.2]} 14. Ng5 {[%clk
0:04:14.1]} 14... hxg5 {[%clk 0:04:27.7]} 15. Bxg5 {[%clk 0:04:14]} 15... Nef6
{[%clk 0:04:24.2]} 16. f4 {[%clk 0:04:12.3]} 16... Nh7 {[%clk 0:04:23.4]} 17.
Rf3 {[%clk 0:04:08.6]} 17... b5 {[%clk 0:04:22.4]} 18. h4 {[%clk 0:04:04.1]}
18... b4 {[%clk 0:04:20.5]} 19. Nb1 {[%clk 0:04:01.1]} 19... Nxg5 {[%clk
0:04:19.7]} 20. hxg5 {[%clk 0:03:58.8]} 20... Bxb2 {[%clk 0:04:18.8]} 21. Rh3
{[%clk 0:03:54.8]} 21... Kg7 {[%clk 0:04:17.8]} 22. Qg3 {[%clk 0:03:52.1]} 22...
Rh8 {[%clk 0:04:16.7]} 23. Kf2 {[%clk 0:03:47.3]} 23... Nb6 {[%clk 0:04:15.5]}
24. Rdh1 {[%clk 0:03:43.9]} 24... Bxh3 {[%clk 0:04:13.8]} 25. Rxh3 {[%clk
0:03:41.7]} 25... Rxh3 {[%clk 0:04:12.8]} 26. Qxh3 {[%clk 0:03:41.6]} 26... Qh8
{[%clk 0:04:11.9]} 27. Kf3 {[%clk 0:03:28]} 27... Qxh3+ {[%clk 0:04:09.1]} 28.
gxh3 {[%clk 0:03:27.9]} 28... Nxa4 {[%clk 0:04:07.8]} 29. Bf1 {[%clk 0:03:27.6]}
29... Nc3 {[%clk 0:04:07]} 30. Nxc3 {[%clk 0:03:25.3]} 30... Bxc3 {[%clk
0:04:05.6]} 31. Bxa6 {[%clk 0:03:22.2]} 31... Rh8 {[%clk 0:04:03]} 32. Bf1
{[%clk 0:03:20.9]} 32... Ra8 {[%clk 0:04:01.4]} 33. Kg4 {[%clk 0:03:19.1]} 33...
Ra1 {[%clk 0:04:01.3]} 34. Bd3 {[%clk 0:03:17.3]} 34... Rg1+ {[%clk 0:04:00.2]}
35. Kh4 {[%clk 0:03:14.5]} 35... Be1# {[%clk 0:03:58.9]} 0-1

[Event "Live Chess"]
[Site "Chess.com"]
[Date "2024.06.01"]
[Round "-"]
[White "Bob2pen"]
[Black "MagnersCarlsberg2870"]
[Result "1-0"]
[WhiteElo "1897"]
[BlackElo "1859"]
[TimeControl "300"]
[EndTime "12:03:48 PDT"]
[Termination "Bob2pen won by checkmate"]

1. e4 {[%clk 0:04:55.9]} 1... e5 {[%clk 0:04:56.9]} 2. Nf3 {[%clk 0:04:54.6]}
2... Nc6 {[%clk 0:04:55.9]} 3. Bb5 {[%clk 0:04:52.9]} 3... a6 {[%clk 0:04:51.7]}
4. Ba4 {[%clk 0:04:51.6]} 4... Nf6 {[%clk 0:04:50.7]} 5. O-O {[%clk 0:04:50.1]}
5... d6 {[%clk 0:04:49]} 6. c3 {[%clk 0:04:48.7]} 6... Bg4 {[%clk 0:04:47.8]} 7.
h3 {[%clk 0:04:47.3]} 7... h5 {[%clk 0:04:42.1]} 8. d3 {[%clk 0:04:45.8]} 8...
Bd7 {[%clk 0:04:37.4]} 9. Nbd2 {[%clk 0:04:43.3]} 9... Be7 {[%clk 0:04:36.3]}
10. Bb3 {[%clk 0:04:37.1]} 10... Be6 {[%clk 0:04:34.5]} 11. Nc4 {[%clk 0:04:34]}
11... b5 {[%clk 0:04:31.6]} 12. Ne3 {[%clk 0:04:32.6]} 12... Bxb3 {[%clk
0:04:29.5]} 13. axb3 {[%clk 0:04:28.8]} 13... a5 {[%clk 0:04:21.7]} 14. Nf5
{[%clk 0:04:24.6]} 14... Kf8 {[%clk 0:04:15.6]} 15. Re1 {[%clk 0:04:16]} 15...
g6 {[%clk 0:04:13]} 16. Ne3 {[%clk 0:04:11.1]} 16... Kg7 {[%clk 0:04:08.4]} 17.
Qd2 {[%clk 0:04:02.6]} 17... Nh7 {[%clk 0:04:07]} 18. Nd5 {[%clk 0:03:59.7]}
18... g5 {[%clk 0:03:44.9]} 19. Nxe7 {[%clk 0:03:56.6]} 19... Qxe7 {[%clk
0:03:43.8]} 20. Nxg5 {[%clk 0:03:55.6]} 20... Rhg8 {[%clk 0:03:32.6]} 21. Nxh7
{[%clk 0:03:53.5]} 21... Kxh7 {[%clk 0:03:31.6]} 22. Qh6# {[%clk 0:03:52]} 1-0

[Event "Live Chess"]
[Site "Chess.com"]
[Date "2024.06.01"]
[Round "-"]
[White "Pandreq"]
[Black "WilliamofOrange16th"]
[Result "0-1"]
[WhiteElo "1130"]
[BlackElo "1983"]
[TimeControl "300"]
[EndTime "12:04:01 PDT"]
[Termination "WilliamofOrange16th won by resignation"]

1. d4 {[%clk 0:04:56.3]} 1... d5 {[%clk 0:04:58.7]} 2. c4 {[%clk 0:04:55.2]}
2... c6 {[%clk 0:04:57.9]} 3. Nc3 {[%clk 0:04:53.9]} 3... Nf6 {[%clk 0:04:56.6]}
4. Nf3 {[%clk 0:04:52.7]} 4... a6 {[%clk 0:04:56.1]} 5. Bf4 {[%clk 0:04:49.4]}
5... dxc4 {[%clk 0:04:52.9]} 6. a4 {[%clk 0:04:45.4]} 6... Bf5 {[%clk
0:04:46.3]} 7. e3 {[%clk 0:04:40.3]} 7... e6 {[%clk 0:04:44.3]} 8. Bxc4 {[%clk
0:04:37.4]} 8... Nbd7 {[%clk 0:04:44.1]} 9. b3 {[%clk 0:04:30.5]} 9... Be7
{[%clk 0:04:40.5]} 10. O-O {[%clk 0:04:22.3]} 10... O-O {[%clk 0:04:38.4]} 11.
Ne5 {[%clk 0:04:11.2]} 11... Bb4 {[%clk 0:04:29.1]} 12. Rc1 {[%clk 0:04:04.8]}
12... Qa5 {[%clk 0:04:22.7]} 13. Na2 {[%clk 0:03:51.8]} 13... Ba3 {[%clk
0:04:13.5]} 14. Rc3 {[%clk 0:03:37.5]} 14... Bb2 {[%clk 0:04:08.7]} 15. b4
{[%clk 0:03:26.2]} 15... Qd8 {[%clk 0:04:05.1]} 16. Rb3 {[%clk 0:03:16.3]} 16...
b5 {[%clk 0:04:00.4]} 17. axb5 {[%clk 0:03:10.1]} 17... cxb5 {[%clk 0:03:57.9]}
18. Bd3 {[%clk 0:02:58.3]} 18... Bxd3 {[%clk 0:03:55.3]} 19. Qxd3 {[%clk
0:02:57.2]} 19... Nxe5 {[%clk 0:03:54.7]} 20. Bxe5 {[%clk 0:02:54.3]} 20... Ng4
{[%clk 0:03:51.2]} 21. Rxb2 {[%clk 0:02:51.2]} 21... Nxe5 {[%clk 0:03:50.4]} 22.
Qe2 {[%clk 0:02:43.9]} 22... Nc4 {[%clk 0:03:49.5]} 23. Rc2 {[%clk 0:02:39.2]}
23... Qd6 {[%clk 0:03:44.5]} 24. Nc3 {[%clk 0:02:29.4]} 24... Qxb4 {[%clk
0:03:42.4]} 25. Rb1 {[%clk 0:02:23.4]} 25... Qe7 {[%clk 0:03:37.7]} 26. Ne4
{[%clk 0:02:14.5]} 26... Na3 {[%clk 0:03:34.5]} 27. Rbc1 {[%clk 0:02:00.4]}
27... Nxc2 {[%clk 0:03:33.1]} 28. Rxc2 {[%clk 0:02:00.3]} 28... h6 {[%clk
0:03:30.9]} 29. Nc5 {[%clk 0:01:58.4]} 29... Rfc8 {[%clk 0:03:23.2]} 30. Qd3
{[%clk 0:01:56.4]} 30... b4 {[%clk 0:03:09.1]} 31. h3 {[%clk 0:01:49.8]} 31...
a5 {[%clk 0:03:08]} 32. Na4 {[%clk 0:01:38.3]} 32... Rxc2 {[%clk 0:02:44.6]} 33.
Qxc2 {[%clk 0:01:37.1]} 33... Qd7 {[%clk 0:02:43.9]} 34. Nc5 {[%clk 0:01:30]}
34... Qb5 {[%clk 0:02:41.1]} 35. Qe4 {[%clk 0:01:21.8]} 35... Re8 {[%clk
0:02:23]} 36. Nb7 {[%clk 0:01:17.3]} 36... Rd8 {[%clk 0:02:15.7]} 37. Nxd8
{[%clk 0:01:11.5]} 37... b3 {[%clk 0:02:10.6]} 38. Nc6 {[%clk 0:00:58.5]} 38...
b2 {[%clk 0:02:09.6]} 39. Ne7+ {[%clk 0:00:52.2]} 39... Kf8 {[%clk 0:02:07.5]}
40. Ng6+ {[%clk 0:00:30.9]} 40... fxg6 {[%clk 0:02:01.6]} 41. Qb1 {[%clk
0:00:20.4]} 41... a4 {[%clk 0:02:00]} 42. g3 {[%clk 0:00:18.2]} 42... a3 {[%clk
0:01:59.5]} 43. Qxg6 {[%clk 0:00:08.9]} 43... Qf5 {[%clk 0:01:51.5]} 0-1

[Event "Live Chess"]
[Site "Chess.com"]
[Date "2024.06.01"]
[Round "-"]
[White "IanCalvert2"]
[Black "nigelst"]
[Result "1-0"]
[WhiteElo "1543"]
[BlackElo "1633"]
[TimeControl "300"]
[EndTime "12:04:08 PDT"]
[Termination "IanCalvert2 won by resignation"]

1. b3 {[%clk 0:04:57]} 1... e5 {[%clk 0:04:58]} 2. Bb2 {[%clk 0:04:55.8]} 2...
Nc6 {[%clk 0:04:55.6]} 3. e3 {[%clk 0:04:54.7]} 3... d5 {[%clk 0:04:54.5]} 4.
Bb5 {[%clk 0:04:51.1]} 4... Bd6 {[%clk 0:04:53.2]} 5. f4 {[%clk 0:04:49.4]} 5...
Qh4+ {[%clk 0:04:50.2]} 6. g3 {[%clk 0:04:47.5]} 6... Qe7 {[%clk 0:04:49.1]} 7.
Nf3 {[%clk 0:04:45.1]} 7... Bg4 {[%clk 0:04:43.4]} 8. fxe5 {[%clk 0:04:43.4]}
8... Bxe5 {[%clk 0:04:36.7]} 9. Bxe5 {[%clk 0:04:39]} 9... Bxf3 {[%clk
0:04:32.7]} 10. Qxf3 {[%clk 0:04:37.3]} 10... Qxe5 {[%clk 0:04:30.9]} 11. Bxc6+
{[%clk 0:04:36]} 11... bxc6 {[%clk 0:04:29]} 12. O-O {[%clk 0:04:34.5]} 12...
Nf6 {[%clk 0:04:27.9]} 13. Nc3 {[%clk 0:04:32.4]} 13... O-O {[%clk 0:04:24.7]}
14. Qf4 {[%clk 0:04:30.3]} 14... Qe7 {[%clk 0:04:23.1]} 15. Qh4 {[%clk
0:04:23.6]} 15... Rfe8 {[%clk 0:04:12.8]} 16. Rf5 {[%clk 0:04:19.2]} 16... Ne4
{[%clk 0:03:45.9]} 17. Qxe7 {[%clk 0:04:12.1]} 17... Rxe7 {[%clk 0:03:44.4]} 18.
Nxe4 {[%clk 0:04:09.2]} 18... Rxe4 {[%clk 0:03:42.3]} 19. Raf1 {[%clk 0:04:03]}
19... f6 {[%clk 0:03:40.7]} 20. R1f4 {[%clk 0:03:53.8]} 20... Rae8 {[%clk
0:03:37.7]} 21. Rxe4 {[%clk 0:03:49.1]} 21... Rxe4 {[%clk 0:03:35.8]} 22. Rf4
{[%clk 0:03:42.9]} 22... Rxf4 {[%clk 0:03:24.7]} 23. exf4 {[%clk 0:03:40.8]}
23... Kf7 {[%clk 0:03:24.1]} 24. Kf2 {[%clk 0:03:38.4]} 24... Ke6 {[%clk
0:03:23.7]} 25. Ke3 {[%clk 0:03:37.2]} 25... Kd6 {[%clk 0:03:22.6]} 26. c4
{[%clk 0:03:21.4]} 26... c5 {[%clk 0:03:17.8]} 27. d4 {[%clk 0:03:16.9]} 27...
cxd4+ {[%clk 0:03:13.3]} 28. Kxd4 {[%clk 0:03:09.9]} 28... c6 {[%clk 0:03:08.7]}
29. cxd5 {[%clk 0:03:02.3]} 29... cxd5 {[%clk 0:03:05]} 30. b4 {[%clk
0:03:00.1]} 30... Kc6 {[%clk 0:03:03.3]} 31. a4 {[%clk 0:02:58.9]} 31... a6
{[%clk 0:03:02.5]} 32. f5 {[%clk 0:02:48.4]} 32... h6 {[%clk 0:02:49.8]} 33. g4
{[%clk 0:02:45.6]} 33... Kd6 {[%clk 0:02:41.4]} 34. b5 {[%clk 0:02:35.2]} 34...
axb5 {[%clk 0:02:38.4]} 35. axb5 {[%clk 0:02:33.4]} 35... Kc7 {[%clk 0:02:37.8]}
36. Kxd5 {[%clk 0:02:30.7]} 36... Kb6 {[%clk 0:02:37]} 37. Ke6 {[%clk
0:02:22.3]} 37... Kxb5 {[%clk 0:02:36]} 38. Kf7 {[%clk 0:02:21.2]} 1-0

[Event "Live Chess"]
[Site "Chess.com"]
[Date "2024.06.01"]
[Round "-"]
[White "dhairyapandyauk"]
[Black "Ferrarifan27"]
[Result "1/2-1/2"]
[WhiteElo "1644"]
[BlackElo "2055"]
[TimeControl "300"]
[EndTime "12:04:14 PDT"]
[Termination "Game drawn by stalemate"]

1. e4 {[%clk 0:04:58]} 1... e5 {[%clk 0:04:58.7]} 2. Nf3 {[%clk 0:04:56.8]} 2...
Nc6 {[%clk 0:04:57.7]} 3. c3 {[%clk 0:04:56.3]} 3... Nf6 {[%clk 0:04:55.7]} 4.
d4 {[%clk 0:04:55.2]} 4... exd4 {[%clk 0:04:53.3]} 5. e5 {[%clk 0:04:54.7]} 5...
Nd5 {[%clk 0:04:51.4]} 6. cxd4 {[%clk 0:04:54.2]} 6... d6 {[%clk 0:04:50.6]} 7.
exd6 {[%clk 0:04:51.2]} 7... Bxd6 {[%clk 0:04:48.9]} 8. Nc3 {[%clk 0:04:50.8]}
8... Nxc3 {[%clk 0:04:47.5]} 9. bxc3 {[%clk 0:04:50.3]} 9... O-O {[%clk
0:04:46.2]} 10. Be2 {[%clk 0:04:49.6]} 10... Re8 {[%clk 0:04:44.7]} 11. O-O
{[%clk 0:04:49.1]} 11... Bf5 {[%clk 0:04:42.6]} 12. Be3 {[%clk 0:04:48.3]} 12...
Qd7 {[%clk 0:04:37.2]} 13. Bd3 {[%clk 0:04:46.3]} 13... Rad8 {[%clk 0:04:28.4]}
14. Qc2 {[%clk 0:04:41.7]} 14... Bxd3 {[%clk 0:04:26.2]} 15. Qxd3 {[%clk
0:04:41.2]} 15... b6 {[%clk 0:04:17.7]} 16. Rac1 {[%clk 0:04:37.9]} 16... Ne7
{[%clk 0:04:02.8]} 17. Rfe1 {[%clk 0:04:33.9]} 17... Nf5 {[%clk 0:03:58.3]} 18.
Bd2 {[%clk 0:04:26.8]} 18... c5 {[%clk 0:03:55.7]} 19. Rxe8+ {[%clk 0:04:21.4]}
19... Rxe8 {[%clk 0:03:53.9]} 20. Re1 {[%clk 0:04:18.4]} 20... Rxe1+ {[%clk
0:03:51.1]} 21. Bxe1 {[%clk 0:04:18]} 21... cxd4 {[%clk 0:03:50.2]} 22. Nxd4
{[%clk 0:04:10.1]} 22... Nxd4 {[%clk 0:03:46.4]} 23. Qxd4 {[%clk 0:04:09.6]}
23... Qc7 {[%clk 0:03:39.6]} 24. h3 {[%clk 0:04:06]} 24... Be5 {[%clk
0:03:37.4]} 25. Qd5 {[%clk 0:03:59]} 25... g6 {[%clk 0:03:30.9]} 26. c4 {[%clk
0:03:57.4]} 26... Bh2+ {[%clk 0:03:20.7]} 27. Kf1 {[%clk 0:03:52.5]} 27... Bd6
{[%clk 0:03:13.4]} 28. Bc3 {[%clk 0:03:49.2]} 28... Bf8 {[%clk 0:03:01.2]} 29.
Qd4 {[%clk 0:03:46.1]} 29... f6 {[%clk 0:02:53.5]} 30. Qxf6 {[%clk 0:03:40.7]}
30... Qxc4+ {[%clk 0:02:51.9]} 31. Kg1 {[%clk 0:03:39.5]} 31... Qxa2 {[%clk
0:02:38.3]} 32. Qh8+ {[%clk 0:03:23.5]} 32... Kf7 {[%clk 0:02:36.3]} 33. Qxh7+
{[%clk 0:03:22.8]} 33... Ke8 {[%clk 0:02:33.1]} 34. Qxg6+ {[%clk 0:03:20.7]}
34... Qf7 {[%clk 0:02:25.3]} 35. Qc6+ {[%clk 0:03:16.8]} 35... Qd7 {[%clk
0:02:19]} 36. Qe4+ {[%clk 0:03:13.3]} 36... Be7 {[%clk 0:02:11.2]} 37. g4 {[%clk
0:03:04.5]} 37... a5 {[%clk 0:02:03.3]} 38. g5 {[%clk 0:03:03.6]} 38... Qxh3
{[%clk 0:01:52]} 39. Bf6 {[%clk 0:02:55.6]} 39... Qd7 {[%clk 0:01:50.3]} 40. g6
{[%clk 0:02:49.9]} 40... Kd8 {[%clk 0:01:25.7]} 41. Bxe7+ {[%clk 0:02:44.3]}
41... Qxe7 {[%clk 0:01:24.3]} 42. Qa8+ {[%clk 0:02:43]} 42... Kd7 {[%clk
0:01:19.9]} 43. Qa7+ {[%clk 0:02:41.1]} 43... Ke8 {[%clk 0:01:15.4]} 44. Qb8+
{[%clk 0:02:36]} 44... Kd7 {[%clk 0:01:13.5]} 45. Qb7+ {[%clk 0:02:35.2]} 45...
Ke6 {[%clk 0:01:07.6]} 46. Qxb6+ {[%clk 0:02:31.3]} 46... Kf5 {[%clk 0:01:06.5]}
47. Qxa5+ {[%clk 0:02:23.7]} 47... Kxg6 {[%clk 0:01:03.6]} 48. Qb6+ {[%clk
0:02:22.7]} 48... Kf5 {[%clk 0:01:01.4]} 49. Qb5+ {[%clk 0:02:20.9]} 49... Kf4
{[%clk 0:00:57.2]} 50. Qc4+ {[%clk 0:02:17.5]} 50... Kf3 {[%clk 0:00:53.3]} 51.
Qd5+ {[%clk 0:02:12.2]} 51... Kf4 {[%clk 0:00:49]} 52. Kg2 {[%clk 0:02:09.9]}
52... Qg7+ {[%clk 0:00:46.6]} 53. Kf1 {[%clk 0:02:05.1]} 53... Qa1+ {[%clk
0:00:44.9]} 54. Ke2 {[%clk 0:02:04.2]} 54... Qb2+ {[%clk 0:00:44]} 55. Qd2+
{[%clk 0:02:02.9]} 55... Qxd2+ {[%clk 0:00:43.1]} 56. Kxd2 {[%clk 0:02:02.5]}
56... Kf3 {[%clk 0:00:42.2]} 57. Ke1 {[%clk 0:02:02.1]} 57... Kf4 {[%clk
0:00:40.5]} 58. Ke2 {[%clk 0:02:01.6]} 58... Ke4 {[%clk 0:00:39.8]} 59. f3+
{[%clk 0:02:00.6]} 59... Kf4 {[%clk 0:00:39.1]} 60. Kf2 {[%clk 0:02:00.1]} 60...
Kf5 {[%clk 0:00:38.5]} 61. Ke3 {[%clk 0:01:59.5]} 61... Ke5 {[%clk 0:00:37.3]}
62. f4+ {[%clk 0:01:59.1]} 62... Kf5 {[%clk 0:00:36.4]} 63. Kf3 {[%clk
0:01:58.7]} 63... Kf6 {[%clk 0:00:35.7]} 64. Ke4 {[%clk 0:01:58.2]} 64... Ke6
{[%clk 0:00:34.8]} 65. f5+ {[%clk 0:01:57.6]} 65... Kf6 {[%clk 0:00:34.2]} 66.
Kf4 {[%clk 0:01:57]} 66... Kf7 {[%clk 0:00:32.6]} 67. Kg5 {[%clk 0:01:56.4]}
67... Kg7 {[%clk 0:00:31.9]} 68. f6+ {[%clk 0:01:55.9]} 68... Kf7 {[%clk
0:00:30.8]} 69. Kf5 {[%clk 0:01:55.4]} 69... Kf8 {[%clk 0:00:29.1]} 70. Kg6
{[%clk 0:01:40.4]} 70... Kg8 {[%clk 0:00:27.6]} 71. f7+ {[%clk 0:01:39.9]} 71...
Kf8 {[%clk 0:00:26.8]} 72. Kf6 {[%clk 0:01:39.8]} 1/2-1/2

[Event "Live Chess"]
[Site "Chess.com"]
[Date "2024.06.01"]
[Round "-"]
[White "MaksymYurii"]
[Black "peteopeteo"]
[Result "0-1"]
[WhiteElo "934"]
[BlackElo "1598"]
[TimeControl "300"]
[EndTime "12:04:25 PDT"]
[Termination "peteopeteo won by checkmate"]

1. e4 {[%clk 0:04:54.9]} 1... c6 {[%clk 0:04:59.4]} 2. Nf3 {[%clk 0:04:54.2]}
2... d5 {[%clk 0:04:59.3]} 3. e5 {[%clk 0:04:52.5]} 3... Bf5 {[%clk 0:04:58.7]}
4. d4 {[%clk 0:04:49.3]} 4... e6 {[%clk 0:04:54.3]} 5. h3 {[%clk 0:04:42.7]}
5... c5 {[%clk 0:04:50.5]} 6. Nh4 {[%clk 0:04:38.5]} 6... Bg6 {[%clk 0:04:49]}
7. f4 {[%clk 0:04:34.1]} 7... Nc6 {[%clk 0:04:43.9]} 8. Nxg6 {[%clk 0:04:23.3]}
8... hxg6 {[%clk 0:04:43.3]} 9. h4 {[%clk 0:04:16.3]} 9... Rxh4 {[%clk
0:04:41.4]} 10. Rxh4 {[%clk 0:04:13.8]} 10... Qxh4+ {[%clk 0:04:41.3]} 11. Kd2
{[%clk 0:04:10.1]} 11... Qxf4+ {[%clk 0:04:38]} 12. Kd3 {[%clk 0:04:09.3]} 12...
Qxd4+ {[%clk 0:04:35.9]} 13. Ke2 {[%clk 0:04:08]} 13... Qxe5+ {[%clk 0:04:32.8]}
14. Kf3 {[%clk 0:04:06.7]} 14... Nd4+ {[%clk 0:04:30.7]} 15. Kf2 {[%clk
0:04:03.1]} 15... Bd6 {[%clk 0:04:21.5]} 16. c3 {[%clk 0:03:59.4]} 16... Qg3+
{[%clk 0:04:19.4]} 17. Kg1 {[%clk 0:03:57.8]} 17... Qh2+ {[%clk 0:04:16.4]} 18.
Kf2 {[%clk 0:03:56.8]} 18... Bg3+ {[%clk 0:04:15.5]} 19. Ke3 {[%clk 0:03:53.9]}
19... Nf5+ {[%clk 0:04:10.1]} 20. Kd3 {[%clk 0:03:50.6]} 20... c4+ {[%clk
0:04:06.1]} 21. Kc2 {[%clk 0:03:47.5]} 21... Bf4 {[%clk 0:03:52.6]} 22. Bxf4
{[%clk 0:03:31]} 22... Qxf4 {[%clk 0:03:52.5]} 23. Qf3 {[%clk 0:03:17.4]} 23...
Qxf3 {[%clk 0:03:47.8]} 24. gxf3 {[%clk 0:03:16]} 24... Ne3+ {[%clk 0:03:47.1]}
25. Kd2 {[%clk 0:03:13.6]} 25... Nxf1+ {[%clk 0:03:46.4]} 26. Ke2 {[%clk
0:03:10.3]} 26... Ng3+ {[%clk 0:03:45.6]} 27. Ke3 {[%clk 0:03:08.6]} 27... Nf5+
{[%clk 0:03:44.8]} 28. Ke2 {[%clk 0:03:06.4]} 28... Nf6 {[%clk 0:03:43.7]} 29.
Nd2 {[%clk 0:03:04]} 29... O-O-O {[%clk 0:03:42.6]} 30. b3 {[%clk 0:03:01.5]}
30... b5 {[%clk 0:03:41.3]} 31. Rh1 {[%clk 0:02:51.7]} 31... Ng3+ {[%clk
0:03:34.6]} 32. Kf2 {[%clk 0:02:50.5]} 32... Nxh1+ {[%clk 0:03:34.4]} 33. Kg2
{[%clk 0:02:49.1]} 33... Rh8 {[%clk 0:03:32.2]} 34. Nf1 {[%clk 0:02:46.6]} 34...
e5 {[%clk 0:03:27.7]} 35. bxc4 {[%clk 0:02:44.9]} 35... bxc4 {[%clk 0:03:26.8]}
36. a4 {[%clk 0:02:44.1]} 36... e4 {[%clk 0:03:25.9]} 37. fxe4 {[%clk
0:02:41.5]} 37... Nxe4 {[%clk 0:03:25.8]} 38. Ne3 {[%clk 0:02:40.4]} 38... Rd8
{[%clk 0:03:20.2]} 39. Kxh1 {[%clk 0:02:31.5]} 39... Nxc3 {[%clk 0:03:17.4]} 40.
Kg2 {[%clk 0:02:28.3]} 40... Nxa4 {[%clk 0:03:15.4]} 41. Kf3 {[%clk 0:02:26.5]}
41... c3 {[%clk 0:03:12.8]} 42. Ke2 {[%clk 0:02:23.5]} 42... d4 {[%clk
0:03:11.8]} 43. Nc4 {[%clk 0:02:20.2]} 43... Nb6 {[%clk 0:03:10.3]} 44. Na3
{[%clk 0:02:16.8]} 44... f5 {[%clk 0:03:07.4]} 45. Kd3 {[%clk 0:02:15.8]} 45...
Na4 {[%clk 0:03:04.2]} 46. Nb5 {[%clk 0:02:13.9]} 46... Nb2+ {[%clk 0:02:46]}
47. Kc2 {[%clk 0:02:08]} 47... Kb7 {[%clk 0:02:41.2]} 48. Kb3 {[%clk 0:01:54.3]}
48... f4 {[%clk 0:02:33.7]} 49. Kb4 {[%clk 0:01:50.5]} 49... f3 {[%clk
0:02:29.8]} 50. Kb3 {[%clk 0:01:49.1]} 50... f2 {[%clk 0:02:28.8]} 51. Kb4
{[%clk 0:01:48.1]} 51... f1=Q {[%clk 0:02:27.3]} 52. Kb3 {[%clk 0:01:47]} 52...
Qxb5+ {[%clk 0:02:26.5]} 53. Kc2 {[%clk 0:01:45.4]} 53... Qd3+ {[%clk
0:02:24.4]} 54. Kb3 {[%clk 0:01:44.2]} 54... Rd6 {[%clk 0:02:22.9]} 55. Ka2
{[%clk 0:01:41.8]} 55... Rb6 {[%clk 0:02:19.7]} 56. Ka3 {[%clk 0:01:34.3]} 56...
Qa6# {[%clk 0:02:19.2]} 0-1

[Event "Live Chess"]
[Site "Chess.com"]
[Date "2024.06.01"]
[Round "-"]
[White "OurKnightAtTheOpera"]
[Black "Ksenia_2013"]
[Result "1-0"]
[WhiteElo "2017"]
[BlackElo "766"]
[TimeControl "300"]
[EndTime "12:04:43 PDT"]
[Termination "OurKnightAtTheOpera won - game abandoned"]

1. Nf3 {[%clk 0:04:53.2]} 1... d5 {[%clk 0:04:58.4]} 2. b3 {[%clk 0:04:52.6]}
2... Nf6 {[%clk 0:04:55.6]} 3. Bb2 {[%clk 0:04:51.9]} 3... e6 {[%clk 0:04:54.1]}
4. e3 {[%clk 0:04:51.4]} 4... Bd6 {[%clk 0:04:52.9]} 5. c4 {[%clk 0:04:50.9]}
5... dxc4 {[%clk 0:04:50.5]} 6. bxc4 {[%clk 0:04:49.8]} 6... Ne4 {[%clk
0:04:48.2]} 7. d4 {[%clk 0:04:48.7]} 7... O-O {[%clk 0:04:46.3]} 8. Nc3 {[%clk
0:04:46.5]} 8... Nc6 {[%clk 0:04:43.6]} 9. Bd3 {[%clk 0:04:45.5]} 9... Nxc3
{[%clk 0:04:35]} 10. Bxc3 {[%clk 0:04:45.4]} 10... Nb4 {[%clk 0:04:28.2]} 11.
O-O {[%clk 0:04:42.6]} 11... Nxd3 {[%clk 0:04:25.8]} 12. Qxd3 {[%clk 0:04:41.6]}
12... Qf6 {[%clk 0:04:18.1]} 13. Rab1 {[%clk 0:04:33.7]} 13... Qh6 {[%clk
0:04:11.7]} 14. e4 {[%clk 0:04:24.4]} 14... e5 {[%clk 0:04:10.4]} 15. dxe5
{[%clk 0:04:21.7]} 15... Bg4 {[%clk 0:04:07.4]} 16. exd6 {[%clk 0:04:19.8]} 1-0